bitfinex/quotes_BTCUSD_20251117
["timestamp","ask_amount","ask_price","bid_price","bid_amount"]
[1763387080275,0.60487782,94151.0,94150.0,9.77078565]
[1763387081161,0.54081782,94151.0,94150.0,9.77078565]
[1763387081854,0.01812682,94151.0,94150.0,9.77078565]
[1763387082262,0.01961682,94151.0,94150.0,9.77078565]
[1763387082382,0.03886681,94151.0,94150.0,9.77078565]
[1763387082578,0.03837681,94151.0,94150.0,9.77078565]
[1763387083211,0.55316581,94151.0,94150.0,9.77078565]
[1763387083390,0.55316581,94151.0,94150.0,9.69178565]
[1763387083391,0.60217581,94151.0,94150.0,9.69178565]
[1763387083590,0.55316581,94151.0,94150.0,9.69178565]
[1763387083792,0.60217581,94151.0,94150.0,9.69178565]
[1763387084002,0.60117581,94151.0,94150.0,9.69178565]
[1763387085170,0.60117581,94151.0,94150.0,9.69315575]
[1763387085374,0.63314847,94151.0,94150.0,9.69315575]
[1763387085587,0.63414847,94151.0,94150.0,9.69315575]
[1763387086033,0.63314847,94151.0,94150.0,9.69315575]
[1763387086965,0.67656721,94151.0,94150.0,9.20169432]
[1763387087589,0.67756721,94151.0,94150.0,9.20169432]
[1763387088127,0.67656721,94151.0,94150.0,9.20169432]
[1763387088330,0.67656721,94151.0,94150.0,8.56096467]
[1763387088533,0.67656721,94151.0,94150.0,8.37372111]
[1763387088534,0.67856721,94151.0,94150.0,8.37372111]
[1763387088976,0.67656721,94151.0,94150.0,8.37372111]
[1763387089333,0.67856721,94151.0,94150.0,7.59189559]
[1763387089699,0.67856721,94151.0,94150.0,7.38349268]
[1763387090473,0.67856721,94151.0,94150.0,6.7965747]
[1763387090684,0.63514847,94151.0,94150.0,6.7965747]
[1763387091269,0.63314847,94151.0,94150.0,6.7965747]
[1763387091653,0.63514847,94151.0,94150.0,6.7965747]
[1763387092339,0.63314847,94151.0,94150.0,6.7965747]
[1763387092906,0.63414847,94151.0,94150.0,6.7965747]
[1763387093976,0.43202766,94151.0,94150.0,6.7965747]
[1763387096217,0.4601429,94151.0,94150.0,5.78677112]
[1763387096530,0.4621429,94151.0,94150.0,5.78677112]
[1763387096949,0.41872416,94151.0,94150.0,5.78677112]
[1763387097360,0.41872416,94151.0,94150.0,5.73330106]
[1763387097597,0.41872416,94151.0,94150.0,5.70099247]
[1763387098480,0.41672416,94151.0,94150.0,5.70099247]
[1763387098907,0.4621429,94151.0,94150.0,5.70099247]
[1763387099105,0.4621429,94151.0,94150.0,5.21690091]
[1763387099494,0.41672416,94151.0,94150.0,5.21690091]
[1763387099699,0.4601429,94151.0,94150.0,4.47952065]
[1763387100045,0.4621429,94151.0,94150.0,4.47952065]
[1763387100232,0.4621429,94151.0,94150.0,3.98819985]
[1763387100438,0.4621429,94151.0,94150.0,3.79630594]
[1763387100594,0.4621429,94151.0,94150.0,3.78950178]
[1763387101135,0.4621429,94151.0,94150.0,2.571219]
[1763387101346,0.4621429,94151.0,94150.0,1.27320206]
[1763387101556,0.4621429,94151.0,94150.0,6e-08]
[1763387102455,0.4601429,94151.0,94150.0,6e-08]
[1763387102961,0.4621429,94151.0,94150.0,6e-08]
[1763387103366,0.41872416,94151.0,94150.0,6e-08]
[1763387104289,0.41672416,94151.0,94150.0,6e-08]
[1763387104520,0.36771416,94151.0,94150.0,6e-08]
[1763387104716,0.41872416,94151.0,94150.0,6e-08]
[1763387104866,0.21245011,94140.0,94102.0,0.04341874]
[1763387105072,0.21245011,94140.0,94101.0,0.02662006]
[1763387105073,0.04829,94122.0,94101.0,0.02662006]
[1763387105500,0.04829,94122.0,94102.0,0.02125353]
[1763387105878,0.01926614,94121.0,94102.0,0.02125353]
[1763387106085,0.01926614,94120.0,94102.0,0.02125353]
[1763387106280,0.01926614,94119.0,94103.0,0.05388742]
[1763387106482,0.01926614,94118.0,94104.0,0.02125308]
[1763387106685,0.01926614,94117.0,94104.0,0.02125308]
[1763387107043,0.01926614,94116.0,94104.0,0.02125308]
[1763387107236,0.01926614,94115.0,94104.0,0.02125308]
[1763387107471,0.01926614,94114.0,94105.0,0.02125285]
[1763387107680,0.01926614,94114.0,94102.0,0.00044228]
[1763387107681,0.01926614,94113.0,94102.0,0.00044228]
[1763387107888,0.01926614,94112.0,94102.0,0.02169581]
[1763387108093,0.01926614,94111.0,94103.0,0.0908]
[1763387108317,0.01926614,94110.0,94104.0,0.02125308]
[1763387108566,0.01926614,94109.0,94104.0,0.04341874]
[1763387108786,0.01926614,94108.0,94105.0,0.02125285]
[1763387109012,0.01926614,94107.0,94105.0,0.02125285]
[1763387109221,0.184161,94150.0,94139.0,0.04424]
[1763387109430,0.01929796,94149.0,94139.0,0.06478]
[1763387109630,0.23173118,94148.0,94132.0,0.04424]
[1763387109760,0.01929796,94147.0,94132.0,0.04424]
[1763387109974,0.01929796,94146.0,94132.0,0.04424]
[1763387110175,0.01929796,94145.0,94126.0,0.04424]
[1763387110377,0.01929796,94144.0,94139.0,0.00030809]
[1763387110584,0.01929796,94143.0,94126.0,0.04468228]
[1763387110784,0.184161,94148.0,94142.0,0.00022417]
[1763387110981,0.39660474,94143.0,94142.0,0.00022417]
[1763387111192,0.48221706,94143.0,94142.0,0.00022417]
[1763387111396,0.57313706,94143.0,94142.0,0.00022417]
[1763387111584,0.36069332,94143.0,94142.0,0.00022417]
[1763387111779,0.36069332,94143.0,94117.0,0.00390645]
[1763387111983,0.184161,94141.0,94118.0,0.08119057]
[1763387112243,0.01929232,94140.0,94118.0,0.08119057]
[1763387112599,0.01929232,94139.0,94118.0,0.08119057]
[1763387112814,0.01929232,94138.0,94118.0,0.08119057]
[1763387112949,0.01929232,94137.0,94118.0,0.03072057]
[1763387113145,0.01929232,94136.0,94117.0,0.00390645]
[1763387113392,0.04829,94139.0,94117.0,0.00390645]
[1763387113393,0.01929232,94135.0,94117.0,0.00390645]
[1763387113619,0.01929232,94134.0,94117.0,0.00390645]
[1763387113804,0.01929232,94133.0,94117.0,0.00390645]
[1763387114154,0.01929232,94132.0,94118.0,0.02124992]
[1763387114300,0.01929232,94131.0,94118.0,0.02124992]
[1763387114505,0.01929232,94130.0,94119.0,0.05047]
[1763387114719,0.00044256,94143.0,94120.0,0.02124946]
[1763387114720,0.01929232,94129.0,94120.0,0.02124946]
[1763387114876,0.01929232,94128.0,94121.0,0.02124924]
[1763387115082,0.01929232,94127.0,94121.0,0.02124924]
[1763387115367,0.00044256,94143.0,94122.0,0.05047]
[1763387115368,0.01929232,94126.0,94122.0,0.05047]
[1763387115495,0.01929232,94125.0,94123.0,0.02124879]
[1763387115699,0.01929232,94124.0,94123.0,0.01376471]
[1763387115934,0.01929232,94142.0,94123.0,0.01971971]
[1763387116136,0.01929232,94141.0,94124.0,0.04341874]
[1763387116310,0.01929232,94140.0,94126.0,0.04341874]
[1763387116510,0.01929232,94139.0,94126.0,0.04341874]
[1763387116712,0.01929232,94138.0,94128.0,0.04341874]
[1763387116916,0.01929232,94137.0,94130.0,0.04341874]
[1763387117117,0.00044256,94143.0,94132.0,0.04341874]
[1763387117118,0.01929232,94136.0,94132.0,0.04341874]
[1763387117329,0.00044256,94143.0,94134.0,0.09388874]
[1763387117539,0.5,94184.0,94134.0,0.09388874]
[1763387117540,0.184161,94188.0,94143.0,0.04341874]
[1763387117755,0.184161,94187.0,94145.0,0.04341874]
[1763387117966,0.202323,94187.0,94147.0,0.04341874]
[1763387118174,0.018162,94187.0,94149.0,0.04341874]
[1763387118387,0.00013277,94188.0,94151.0,0.04341874]
[1763387118594,0.00013277,94188.0,94153.0,0.04341874]
[1763387118787,0.00013277,94188.0,94155.0,0.04341874]
[1763387119011,0.00013277,94188.0,94150.0,0.04341874]
[1763387119012,0.01870605,94188.0,94150.0,0.04341874]
[1763387119215,0.01870605,94188.0,94154.0,0.09388874]
[1763387119395,0.01870605,94188.0,94155.0,0.02124156]
[1763387119622,0.01870605,94188.0,94156.0,0.04341874]
[1763387119792,0.01870605,94188.0,94158.0,0.04341874]
[1763387119996,0.01870605,94188.0,94160.0,0.04341874]
[1763387120194,0.01870605,94188.0,94162.0,0.04341874]
[1763387120464,0.184161,94187.0,94159.0,0.05047]
[1763387120675,0.21234931,94185.0,94159.0,0.05047]
[1763387120860,0.30292578,94186.0,94145.0,0.04341874]
[1763387120990,0.09058,94186.0,94151.0,0.04341874]
[1763387121202,0.21237009,94176.0,94150.0,0.05047]
[1763387121404,0.01061796,94180.0,94150.0,0.05047]
[1763387121604,0.04693,94175.0,94150.0,0.05047]
[1763387122030,0.21237354,94174.0,94150.0,0.05047]
[1763387122245,0.21237354,94174.0,94121.0,0.10416178]
[1763387122246,0.04693,94151.0,94126.0,0.05047]
[1763387122608,0.04693,94151.0,94138.0,0.02523]
[1763387123127,0.04693,94139.0,94111.0,0.05047]
[1763387123331,0.09058,94172.0,94135.0,0.05047]
[1763387123533,0.09058,94172.0,94134.0,0.00035635]
[1763387123534,0.184161,94162.0,94134.0,0.00035635]
[1763387123730,0.04693,94163.0,94134.0,0.00035635]
[1763387123731,0.184161,94157.0,94134.0,0.00035635]
[1763387123959,0.21242963,94149.0,94134.0,0.00035635]
[1763387124162,0.21243677,94146.0,94134.0,0.00035635]
[1763387124387,0.21243374,94147.0,94134.0,0.00035635]
[1763387124583,0.21244115,94144.0,94134.0,0.00035635]
[1763387124957,0.06623,94135.0,94134.0,0.00035635]
[1763387125439,0.15754,94135.0,94107.0,0.04341874]
[1763387125631,0.1576727,94135.0,94100.0,9.95082635]
[1763387126061,0.0663627,94135.0,94100.0,9.88082635]
[1763387126498,0.0663627,94135.0,94101.0,0.02125375]
[1763387127421,0.0663627,94135.0,94100.0,9.88082635]
[1763387127635,0.0663627,94135.0,94101.0,0.10366938]
[1763387127865,0.0106236,94130.0,94100.0,9.83222635]
[1763387128105,0.184161,94132.0,94100.0,9.83222635]
[1763387128315,0.275471,94134.0,94100.0,9.83222635]
[1763387128531,0.0001327,94135.0,94101.0,0.22908491]
[1763387128963,0.0001327,94135.0,94101.0,0.12492313]
[1763387129397,0.01923347,94134.0,94101.0,0.12492313]
[1763387129622,0.01923347,94133.0,94102.0,0.04341874]
[1763387129845,0.01923347,94133.0,94101.0,0.22908491]
[1763387129846,0.0001327,94135.0,94117.0,0.04341874]
[1763387130061,0.0001327,94135.0,94119.0,0.04341874]
[1763387130307,0.0001327,94135.0,94090.0,0.5097054]
[1763387130542,0.0001327,94135.0,94104.0,0.04341874]
[1763387131462,0.01924806,94134.0,94100.0,9.83222635]
[1763387131681,0.01924806,94133.0,94101.0,0.12492313]
[1763387131895,0.01924806,94132.0,94101.0,0.12492313]
[1763387132110,0.01924806,94131.0,94101.0,0.12492313]
[1763387132326,0.01924806,94130.0,94101.0,0.12492313]
[1763387132529,0.01924806,94129.0,94101.0,0.12492313]
[1763387132744,0.01924806,94128.0,94102.0,0.10366938]
[1763387132947,0.01924806,94127.0,94102.0,0.10366938]
[1763387133154,0.01924806,94126.0,94101.0,0.10366938]
[1763387133354,0.01924806,94125.0,94101.0,0.10366938]
[1763387133532,0.01924806,94124.0,94101.0,0.02466938]
[1763387133707,0.21247052,94131.0,94101.0,0.02466938]
[1763387133905,0.01925953,94130.0,94102.0,0.10366938]
[1763387134106,0.01925953,94129.0,94102.0,0.10366938]
[1763387134308,0.01925953,94128.0,94102.0,0.10366938]
[1763387134512,0.21248752,94124.0,94100.0,9.83222635]
[1763387134754,0.01925953,94123.0,94100.0,9.83222635]
[1763387134937,0.0106236,94130.0,94100.0,9.83222635]
[1763387134938,0.21251388,94112.0,94100.0,9.83222635]
[1763387135138,0.11532,94101.0,94100.0,9.83222635]
[1763387135340,0.16735807,94101.0,94100.0,9.83222635]
[1763387135539,0.22588249,94101.0,94100.0,9.83222635]
[1763387135916,0.41004349,94101.0,94100.0,9.83222635]
[1763387136335,0.41017609,94101.0,94100.0,9.83222635]
[1763387137709,0.23655394,94101.0,94100.0,9.83222635]
[1763387137925,0.28738394,94101.0,94100.0,9.83222635]
[1763387139786,0.1842936,94101.0,94100.0,9.83222635]
[1763387140155,0.0001326,94101.0,94100.0,9.83222635]
[1763387140351,0.0001326,94101.0,94100.0,9.83317789]
[1763387140706,0.0645526,94101.0,94100.0,9.81717789]
[1763387141139,0.7487136,94101.0,94100.0,9.81717789]
[1763387141340,0.2487136,94101.0,94100.0,9.81717789]
[1763387141584,0.0001326,94101.0,94100.0,9.81717789]
[1763387142088,0.0640426,94101.0,94100.0,9.81717789]
[1763387142302,0.2482036,94101.0,94100.0,9.81717789]
[1763387142550,0.0001326,94101.0,94100.0,9.81717789]
[1763387143190,0.21252068,94109.0,94100.0,9.81717789]
[1763387143191,0.21252253,94108.0,94100.0,9.81717789]
[1763387143416,0.0862,94101.0,94100.0,9.81766891]
[1763387143655,0.270361,94101.0,94100.0,9.79166891]
[1763387143865,0.270611,94101.0,94100.0,9.79262045]
[1763387144084,0.270611,94101.0,94100.0,9.79362045]
[1763387144438,0.270361,94101.0,94100.0,9.79362045]
[1763387144793,0.01997,94101.0,94100.0,9.79362045]
[1763387146187,0.08554,94101.0,94100.0,9.79362045]
[1763387146396,0.08644,94101.0,94100.0,9.79362045]
[1763387146795,0.08554,94101.0,94100.0,9.79362045]
[1763387147204,0.08644,94101.0,94100.0,9.79362045]
[1763387147424,0.270601,94101.0,94100.0,9.79362045]
[1763387147622,0.204131,94101.0,94100.0,9.79362045]
[1763387147838,0.01997,94101.0,94100.0,9.71462045]
[1763387148881,0.23250759,94101.0,94100.0,9.71462045]
[1763387149163,0.33550759,94101.0,94100.0,9.71462045]
[1763387149364,0.01997,94101.0,94100.0,9.71462045]
[1763387149631,0.03917456,94101.0,94100.0,9.71462045]
[1763387150785,0.01920456,94101.0,94100.0,9.71462045]
[1763387150995,0.06578308,94122.0,94100.0,9.93896281]
[1763387151228,0.20338119,94121.0,94111.0,0.06522]
[1763387151466,0.01669308,94122.0,94111.0,0.06522]
[1763387151467,0.20338119,94120.0,94112.0,0.02125127]
[1763387151695,0.02025605,94128.0,94112.0,0.06724127]
[1763387151696,0.20338119,94119.0,94112.0,0.06724127]
[1763387151925,0.01922019,94118.0,94112.0,0.06724127]
[1763387152165,0.184161,94127.0,94118.0,0.06522]
[1763387152391,0.01925709,94126.0,94119.0,0.02124969]
[1763387152618,0.01925709,94125.0,94113.0,0.02125104]
[1763387152835,0.01925709,94124.0,94112.0,0.04599]
[1763387153060,0.01925709,94123.0,94112.0,0.04599]
[1763387153280,0.01925709,94123.0,94113.0,0.02125104]
[1763387153499,0.01925709,94122.0,94113.0,0.02125104]
[1763387153729,0.04909,94136.0,94114.0,0.09982]
[1763387153730,0.01925709,94121.0,94114.0,0.09982]
[1763387153948,0.01925709,94120.0,94114.0,0.09982]
[1763387154157,0.01927062,94119.0,94114.0,0.09982]
[1763387154374,0.184161,94135.0,94114.0,0.09982]
[1763387154586,0.01927168,94134.0,94118.0,0.06402]
[1763387154800,0.184161,94132.0,94118.0,0.06402]
[1763387155036,0.184161,94132.0,94114.0,0.09982]
[1763387155037,0.01927168,94131.0,94114.0,0.001]
[1763387155266,0.184161,94129.0,94114.0,0.001]
[1763387155471,0.01927168,94128.0,94114.0,0.001]
[1763387155650,0.01927168,94128.0,94112.0,0.12497]
[1763387155848,0.01927168,94127.0,94112.0,0.12497]
[1763387156060,0.01927168,94126.0,94112.0,0.12497]
[1763387156266,0.01927168,94125.0,94112.0,0.12497]
[1763387156530,0.01927168,94124.0,94121.0,0.00036379]
[1763387156721,0.01927168,94123.0,94112.0,0.12497]
[1763387156927,0.01927168,94122.0,94112.0,0.03099]
[1763387157136,0.01927168,94121.0,94112.0,0.03099]
[1763387157266,0.01927168,94120.0,94112.0,0.03099]
[1763387157471,0.01927168,94119.0,94112.0,0.03099]
[1763387157707,0.01927168,94118.0,94112.0,0.03099]
[1763387157906,0.04909,94136.0,94112.0,0.03099]
[1763387157907,0.184161,94132.0,94113.0,0.02125104]
[1763387158110,0.184161,94130.0,94117.0,0.06402]
[1763387158337,0.01927576,94129.0,94118.0,0.02124992]
[1763387158546,0.184161,94147.0,94119.0,0.02124969]
[1763387158744,0.01927808,94146.0,94143.0,0.00092265]
[1763387158968,0.01927808,94145.0,94143.0,0.00092265]
[1763387159190,0.06741654,94144.0,94143.0,0.00092265]
[1763387159395,0.06825654,94144.0,94143.0,0.00092265]
[1763387159568,0.36339705,94144.0,94143.0,0.00092265]
[1763387159950,0.54769084,94144.0,94143.0,0.00092265]
[1763387160599,0.25171033,94144.0,94143.0,0.00092265]
[1763387160805,0.33586033,94144.0,94143.0,0.00092265]
[1763387161425,0.21249468,94120.0,94119.0,0.001]
[1763387161631,0.184161,94120.0,94088.0,0.09398]
[1763387161802,0.21251421,94112.0,94101.0,0.0274734]
[1763387162027,0.184161,94118.0,94088.0,0.09398]
[1763387162431,0.21250048,94118.0,94117.0,0.00047572]
[1763387162658,0.21250048,94118.0,94100.0,9.68970207]
[1763387162863,0.2124992,94118.0,94100.0,9.68970207]
[1763387163064,4.425e-05,94118.0,94100.0,9.68970207]
[1763387163467,0.21250197,94117.0,94100.0,9.69070207]
[1763387163646,4.425e-05,94118.0,94100.0,9.69070207]
[1763387163973,0.21250193,94117.0,94109.0,0.00022402]
[1763387164095,0.05397846,94116.0,94109.0,0.00022402]
[1763387164295,0.21407726,94110.0,94109.0,0.00022402]
[1763387164558,0.39823826,94110.0,94109.0,0.00022402]
[1763387164757,0.46479826,94110.0,94109.0,0.00022402]
[1763387164982,0.50174288,94110.0,94109.0,0.00022402]
[1763387165725,0.46479826,94110.0,94109.0,0.00022402]
[1763387165897,0.46579826,94110.0,94109.0,0.00022402]
[1763387166475,0.46604515,94110.0,94109.0,4.02e-06]
[1763387166683,0.39669859,94101.0,94100.0,9.68970207]
[1763387167273,0.4948114,94101.0,94100.0,9.68970207]
[1763387168095,0.53153412,94101.0,94100.0,9.68970207]
[1763387168986,0.53253412,94101.0,94100.0,9.68970207]
[1763387169190,0.49553859,94101.0,94100.0,9.68970207]
[1763387169739,0.49453859,94101.0,94100.0,9.68970207]
[1763387169944,0.49453859,94101.0,94100.0,9.63570207]
[1763387170232,0.53151837,94101.0,94100.0,9.63570207]
[1763387170434,0.49453859,94101.0,94100.0,9.63570207]
[1763387171197,0.51379691,94101.0,94100.0,9.63570207]
[1763387171416,0.56377935,94101.0,94100.0,8.75167463]
[1763387171869,0.56277935,94101.0,94100.0,8.00635059]
[1763387172049,0.64177935,94101.0,94100.0,8.00635059]
[1763387172256,0.64177935,94101.0,94100.0,7.66117849]
[1763387172257,0.56277935,94101.0,94100.0,7.66117849]
[1763387172379,0.56377935,94101.0,94100.0,7.59706126]
[1763387172635,0.56377935,94101.0,94100.0,7.50046556]
[1763387172831,0.56477935,94101.0,94100.0,7.316871]
[1763387173076,0.56275138,94101.0,94100.0,7.1550415]
[1763387173861,0.56225386,94101.0,94100.0,6.97144694]
[1763387174286,0.56225386,94101.0,94100.0,6.90231166]
[1763387174462,0.51883512,94101.0,94100.0,6.90231166]
[1763387174669,0.30779505,94101.0,94100.0,6.90231166]
[1763387174875,0.30323135,94101.0,94100.0,6.90231166]
[1763387175306,0.20539135,94101.0,94100.0,6.90231166]
[1763387175700,0.34598623,94101.0,94100.0,6.90231166]
[1763387175933,0.30228135,94101.0,94100.0,6.90231166]
[1763387176248,0.20539135,94101.0,94100.0,7.06031166]
[1763387176454,0.02123035,94101.0,94100.0,7.06031166]
[1763387176662,0.01923035,94101.0,94100.0,7.06031166]
[1763387176883,0.01923035,94101.0,94100.0,7.07392034]
[1763387177091,0.04819,94140.0,94100.0,7.03731166]
[1763387177301,0.5,94143.0,94117.0,0.10484]
[1763387177508,0.51062247,94140.0,94117.0,0.10484]
[1763387177740,0.2124588,94136.0,94117.0,0.19885]
[1763387177978,0.06926649,94118.0,94114.0,0.04031]
[1763387178180,0.06926649,94118.0,94117.0,0.1593]
[1763387178181,0.05004425,94118.0,94117.0,0.1593]
[1763387178563,0.04405509,94118.0,94117.0,0.18055014]
[1763387178805,0.04203085,94118.0,94117.0,0.1593]
[1763387178992,0.04203085,94118.0,94117.0,0.1583]
[1763387179414,0.5,94130.0,94117.0,0.18155014]
[1763387179644,0.22300215,94170.0,94121.0,0.04341874]
[1763387179852,0.181201,94168.0,94161.0,0.04887]
[1763387180064,0.01922317,94167.0,94161.0,0.04887]
[1763387180270,0.181201,94166.0,94161.0,0.04887]
[1763387180475,0.00867628,94184.0,94162.0,0.11524999]
[1763387180678,0.01921594,94183.0,94166.0,0.06529]
[1763387180887,0.01921594,94182.0,94167.0,0.02123886]
[1763387181098,0.00013284,94183.0,94167.0,0.11524886]
[1763387181301,0.00013284,94183.0,94181.0,0.06529]
[1763387181583,0.00013284,94183.0,94167.0,0.11524886]
[1763387181584,0.00013284,94183.0,94182.0,0.06287]
[1763387181803,0.00013284,94183.0,94182.0,0.073642]
[1763387182007,0.00013284,94183.0,94182.0,0.167652]
[1763387182648,0.0004,94200.0,94183.0,0.04341874]
[1763387182849,1.011035,94203.0,94199.0,0.06039]
[1763387183027,1.011035,94203.0,94202.0,0.07496]
[1763387183400,1.011035,94203.0,94202.0,0.16897]
[1763387183800,0.5,94200.0,94183.0,0.04341874]
[1763387184003,0.5,94200.0,94187.0,0.04341874]
[1763387184205,0.5,94200.0,94199.0,0.01849]
[1763387184421,0.147405,94203.0,94199.0,0.01849]
[1763387184633,0.147405,94203.0,94202.0,0.01849]
[1763387184829,0.147405,94203.0,94202.0,0.03972097]
[1763387185211,0.147405,94203.0,94202.0,0.01849]
[1763387186116,0.147405,94203.0,94202.0,0.02049]
[1763387186230,0.147405,94203.0,94170.0,0.69432994]
[1763387186429,0.147405,94203.0,94177.0,0.07391799]
[1763387186681,0.147405,94203.0,94202.0,0.002]
[1763387187046,0.147405,94203.0,94178.0,0.01849]
[1763387187487,0.147405,94203.0,94202.0,0.001]
[1763387187661,0.147405,94203.0,94178.0,0.01849]
[1763387189260,0.147405,94203.0,94202.0,0.001]
[1763387190223,0.147405,94203.0,94178.0,0.01849]
[1763387190435,0.147405,94203.0,94179.0,0.02757015]
[1763387190647,0.147405,94203.0,94178.0,0.01849]
[1763387190853,0.21230971,94202.0,94178.0,0.01849]
[1763387191057,0.147405,94203.0,94178.0,0.01849]
[1763387191263,0.147405,94203.0,94176.0,0.04434]
[1763387191484,0.35971397,94203.0,94177.0,0.0212366]
[1763387191684,0.147405,94203.0,94178.0,0.00655766]
[1763387191885,0.147405,94203.0,94179.0,0.02123615]
[1763387193939,0.04509,94202.0,94176.0,0.04434]
[1763387194159,0.21231823,94199.0,94176.0,0.04434]
[1763387194361,0.21232001,94198.0,94179.0,0.001]
[1763387194564,0.0404815,94198.0,94176.0,0.04434]
[1763387194758,0.147405,94203.0,94176.0,0.04434]
[1763387195005,0.147405,94203.0,94179.0,0.001]
[1763387195137,0.147405,94203.0,94179.0,0.02223615]
[1763387195374,0.147405,94203.0,94176.0,0.04434]
[1763387195576,0.21231131,94202.0,94176.0,0.04434]
[1763387195770,0.21231131,94202.0,94179.0,0.001]
[1763387196398,0.147405,94203.0,94179.0,0.001]
[1763387196399,0.21231971,94198.0,94179.0,0.001]
[1763387196596,0.21231753,94199.0,94179.0,0.001]
[1763387196799,0.21231556,94200.0,94179.0,0.001]
[1763387197029,2.0,94199.0,94179.0,0.001]
[1763387197236,0.21235707,94183.0,94179.0,0.001]
[1763387197433,0.09585,94198.0,94179.0,0.001]
[1763387197633,2.0,94187.0,94179.0,0.001]
[1763387197875,0.21235779,94181.0,94179.0,0.001]
[1763387198089,0.21235878,94181.0,94162.0,0.02123999]
[1763387198252,0.09585,94198.0,94162.0,0.02137283]
[1763387198463,0.21233676,94190.0,94162.0,0.00013284]
[1763387198664,0.21235931,94180.0,94179.0,0.001]
[1763387198868,2.0,94182.0,94162.0,0.00013284]
[1763387199086,1.5,94178.0,94162.0,0.00013284]
[1763387199247,0.04509,94179.0,94162.0,0.00013284]
[1763387199248,2.0,94165.0,94162.0,0.00013284]
[1763387199447,0.21239632,94164.0,94162.0,0.00013284]
[1763387200072,2.66941012,94163.0,94162.0,0.00013284]
[1763387200277,2.15741,94163.0,94162.0,0.00013284]
[1763387200645,2.15741,94163.0,94100.0,6.8790597]
[1763387200646,2.0,94162.0,94100.0,6.8790597]
[1763387200845,0.01062022,94160.0,94102.0,0.01644698]
[1763387201051,0.21246508,94134.0,94101.0,0.00022397]
[1763387201260,2.56156,94132.0,94101.0,0.00022397]
[1763387201459,2.06156,94132.0,94101.0,0.00022397]
[1763387201660,2.15741,94132.0,94101.0,0.00022397]
[1763387201860,2.17645238,94132.0,94101.0,0.00022397]
[1763387202485,2.17645238,94132.0,94131.0,0.00244256]
[1763387202687,0.0106236,94130.0,94101.0,0.00022397]
[1763387202935,0.0310425,94129.0,94101.0,0.00022397]
[1763387203099,0.21251932,94110.0,94101.0,0.00022397]
[1763387203305,2.0,94108.0,94101.0,0.00022397]
[1763387203482,0.0310425,94107.0,94101.0,0.00022397]
[1763387203806,0.21253088,94104.0,94101.0,0.00022397]
[1763387204009,0.21252855,94105.0,94101.0,0.00022397]
[1763387204228,0.03062245,94140.0,94104.0,0.00193]
[1763387204229,2.0,94118.0,94104.0,0.00193]
[1763387204477,2.0,94116.0,94105.0,0.10366938]
[1763387204648,0.01910845,94115.0,94106.0,0.02125263]
[1763387204806,2.0,94129.0,94116.0,0.00193]
[1763387205020,2.0,94127.0,94116.0,0.00193]
[1763387205222,0.5311098,94128.0,94101.0,0.00022397]
[1763387205223,0.0311098,94126.0,94101.0,0.00022397]
[1763387205426,0.01910968,94125.0,94101.0,0.00022397]
[1763387205621,0.01910968,94125.0,94100.0,6.84128367]
[1763387206026,2.0,94123.0,94100.0,6.84128367]
[1763387206223,0.21249694,94119.0,94100.0,6.84128367]
[1763387206450,0.21253689,94102.0,94100.0,6.84128367]
[1763387206734,0.01910968,94101.0,94100.0,6.84128367]
[1763387206929,0.08066968,94101.0,94100.0,6.84128367]
[1763387207728,0.01910968,94101.0,94100.0,6.84128367]
[1763387207934,0.01955166,94101.0,94100.0,6.84128367]
[1763387209380,0.01955166,94101.0,94100.0,6.84321367]
[1763387209381,0.00044198,94101.0,94100.0,6.84321367]
[1763387209621,0.00044198,94101.0,94100.0,6.84514367]
[1763387210521,0.00044198,94101.0,94100.0,6.84321367]
[1763387210720,0.00044198,94101.0,94100.0,6.84128367]
[1763387210912,0.00044198,94101.0,94100.0,6.84228367]
[1763387211324,0.00044198,94101.0,94100.0,6.84421367]
[1763387211528,0.04299246,94101.0,94100.0,6.84228367]
[1763387211711,0.01951637,94101.0,94100.0,6.84228367]
[1763387212055,2.17692637,94101.0,94100.0,6.84228367]
[1763387212599,2.08107637,94101.0,94100.0,6.84228367]
[1763387212802,2.01951637,94101.0,94100.0,6.84228367]
[1763387213023,2.23205396,94101.0,94100.0,6.84128367]
[1763387213425,2.23205396,94101.0,94100.0,6.76228367]
[1763387213627,2.23205396,94101.0,94100.0,6.76328367]
[1763387213830,2.01951637,94101.0,94100.0,6.76228367]
[1763387214536,2.00044198,94101.0,94100.0,6.76228367]
[1763387215342,1.78788867,94101.0,94100.0,6.76228367]
[1763387215544,0.21251259,94113.0,94100.0,6.76228367]
[1763387215724,2.0,94111.0,94101.0,0.02125375]
[1763387215932,2.0,94131.0,94101.0,0.02318375]
[1763387216181,0.21248742,94124.0,94111.0,0.00193]
[1763387216319,2.0,94122.0,94111.0,0.00193]
[1763387216708,0.21248565,94124.0,94111.0,0.00193]
[1763387216709,0.21249327,94121.0,94111.0,0.00193]
[1763387216883,0.2304352,94132.0,94111.0,0.00193]
[1763387216884,0.21248238,94126.0,94111.0,0.00193]
[1763387217093,2.0,94124.0,94111.0,0.00193]
[1763387217279,0.03109017,94123.0,94111.0,0.00193]
[1763387217483,2.0,94130.0,94111.0,0.00193]
[1763387217629,0.01796635,94132.0,94102.0,0.02230854]
[1763387217630,2.0,94128.0,94102.0,0.02230854]
[1763387217830,0.21249553,94120.0,94103.0,0.05578237]
[1763387218069,0.21249553,94120.0,94102.0,0.02230854]
[1763387218279,0.21249546,94120.0,94100.0,6.76232792]
[1763387218499,0.0106236,94130.0,94100.0,6.76232792]
[1763387218695,0.03109695,94129.0,94101.0,0.00193]
[1763387218901,2.0,94127.0,94101.0,0.02048612]
[1763387219054,2.0,94125.0,94102.0,0.10366938]
[1763387219257,0.01909683,94124.0,94103.0,0.0231833]
[1763387219455,0.01909683,94123.0,94103.0,0.0231833]
[1763387219701,2.0,94148.0,94123.0,0.00193]
[1763387219903,0.001,94130.0,94123.0,0.00193]
[1763387220306,0.01911658,94129.0,94123.0,0.00193]
[1763387220510,2.0,94152.0,94129.0,0.00193]
[1763387220711,0.01062247,94140.0,94103.0,0.10559938]
[1763387220908,2.0,94138.0,94104.0,0.00193]
[1763387221129,0.01795692,94152.0,94104.0,0.00193]
[1763387221130,0.01911741,94137.0,94105.0,0.06467159]
[1763387221271,0.01795692,94152.0,94111.0,0.04341874]
[1763387221454,2.0,94149.0,94106.0,0.00193]
[1763387221653,2.0,94149.0,94100.0,6.76228367]
[1763387221654,0.14935921,94148.0,94123.0,0.001]
[1763387221864,1.83851459,94146.0,94107.0,0.10559938]
[1763387222061,0.00013261,94149.0,94108.0,0.01432879]